[Event "American op"]
[Site "Orange USA"]
[Date "2022.11.24"]
[Round "2.1"]
[White "Preotu, Razvan"]
[Black "Qin, Vincent"]
[Result "1-0"]
[ECO "B22"]
[WhiteElo "2493"]
[BlackElo "2034"]
[WhiteFideId "-1"]
[WhiteFideId "-1"]
[PlyCount "63"]
[GameId "2129404714814892"]
[EventDate "2022.11.22"]
[EventType "swiss"]
[EventRounds "9"]
[EventCountry "USA"]
[SourceTitle "10 Days #706"]
[Source "ChessMix"]
[SourceDate "2022.12.01"]
[SourceVersion "1"]
[SourceVersionDate "2022.12.01"]
[SourceQuality "1"]
[TimeControl "5400+30"]

1. e4 c5 2. Nf3 e6 3. c3 Nf6 4. e5 Nd5 5. d4 cxd4 6. cxd4 b6 7. Bd2 Bb7 8. Nc3 Nxc3 9. Bxc3 Be7 10. Bd3 Na6 11. h4 h6 12. Qe2 Nc7 13. Bd2 a5 14. Rh3 Ba6 15. Bxa6 Nxa6 16. Rg3 Nb4 17. Kf1 g5 18. hxg5 hxg5 19. Kg1 Rc8 20. Nxg5 Nc2 21. Qe4 Bxg5 22. Bxg5 Nxa1 23. Qf4 f6 24. Bxf6 Qc7 25. Rc3 Qb8 26. Qg5 Rf8 27. Qg6+ Rf7 28. Rh3 d5 29. Qg8+ Kd7 30. Qxf7+ Kc6 31. Rc3+ Kb5 32. Qd7+ 1-0

[Event "American op"]
[Site "Orange USA"]
[Date "2022.11.24"]
[Round "3.1"]
[White "Chen, Jonathan"]
[Black "Preotu, Razvan"]
[Result "1/2-1/2"]
[ECO "D76"]
[WhiteElo "2193"]
[BlackElo "2493"]
[WhiteFideId "-1"]
[WhiteFideId "-1"]
[PlyCount "88"]
[GameId "2129404714814896"]
[EventDate "2022.11.22"]
[EventType "swiss"]
[EventRounds "9"]
[EventCountry "USA"]
[SourceTitle "10 Days #706"]
[Source "ChessMix"]
[SourceDate "2022.12.01"]
[SourceVersion "1"]
[SourceVersionDate "2022.12.01"]
[SourceQuality "1"]
[TimeControl "5400+30"]

1. d4 Nf6 2. c4 g6 3. Nf3 Bg7 4. g3 d5 5. cxd5 Nxd5 6. Bg2 Nb6 7. Nc3 Nc6 8. e3 O-O 9. O-O Re8 10. d5 Na5 11. Nd4 Bd7 12. Qc2 Qc8 13. Bd2 Bh3 14. Bxh3 Qxh3 15. b3 Bxd4 16. exd4 Rad8 17. Ne2 Rxd5 18. Nf4 Qf5 19. Rfc1 Nc6 20. Nxd5 Nxd5 21. Qxf5 gxf5 22. Be3 f6 23. Rc5 e6 24. a3 Kf7 25. Rac1 a6 26. Kf1 Ke7 27. b4 Kd7 28. Ke2 h5 29. Kf3 Rg8 30. Rd1 b6 31. Rc2 h4 32. Rdc1 Nce7 33. Bf4 c6 34. h3 hxg3 35. fxg3 Rh8 36. Rh2 Ng6 37. Bd2 e5 38. dxe5 fxe5 39. h4 e4+ 40. Ke2 Rh5 41. Rf2 Ne5 42. Rcf1 Nf3 43. Rxf3 exf3+ 44. Kxf3 c5 1/2-1/2

[Event "American op"]
[Site "Orange USA"]
[Date "2022.11.25"]
[Round "4.4"]
[White "Preotu, Razvan"]
[Black "Wang, Alex Yuxuan"]
[Result "1-0"]
[ECO "B84"]
[WhiteElo "2493"]
[BlackElo "2049"]
[WhiteFideId "-1"]
[WhiteFideId "-1"]
[PlyCount "35"]
[GameId "2129404714823095"]
[EventDate "2022.11.22"]
[EventType "swiss"]
[EventRounds "9"]
[EventCountry "USA"]
[SourceTitle "10 Days #706"]
[Source "ChessMix"]
[SourceDate "2022.12.01"]
[SourceVersion "1"]
[SourceVersionDate "2022.12.01"]
[SourceQuality "1"]
[TimeControl "5400+30"]

1. e4 c5 2. Nf3 d6 3. d4 cxd4 4. Nxd4 Nf6 5. Nc3 a6 6. Be3 e6 7. Be2 Nbd7 8. g4 Nc5 9. f3 Qc7 10. g5 Nfd7 11. b4 Nb3 12. Ncb5 axb5 13. Nxb5 Qb8 14. axb3 Rxa1 15. Qxa1 b6 16. O-O Bb7 17. Rd1 e5 18. Qc3 1-0

[Event "American op"]
[Site "Orange USA"]
[Date "2022.11.26"]
[Round "6.2"]
[White "Preotu, Razvan"]
[Black "Grabinsky, Aaron"]
[Result "1-0"]
[ECO "B11"]
[WhiteElo "2493"]
[BlackElo "2425"]
[WhiteFideId "-1"]
[WhiteFideId "-1"]
[PlyCount "197"]
[GameId "2129404714823101"]
[EventDate "2022.11.22"]
[EventType "swiss"]
[EventRounds "9"]
[EventCountry "USA"]
[SourceTitle "10 Days #706"]
[Source "ChessMix"]
[SourceDate "2022.12.01"]
[SourceVersion "1"]
[SourceVersionDate "2022.12.01"]
[SourceQuality "1"]
[TimeControl "5400+30"]

1. e4 c6 2. Nc3 d5 3. Nf3 Bg4 4. h3 Bxf3 5. Qxf3 e6 6. g3 Bc5 7. Bg2 Nd7 8. d3 Ngf6 9. O-O Qc7 10. Bf4 Bd6 11. exd5 exd5 12. Rae1+ Kf8 13. Bd2 h6 14. Nd1 g6 15. c4 dxc4 16. dxc4 Kg7 17. b4 a5 18. c5 Be5 19. a3 axb4 20. axb4 Ra2 21. Re2 Rha8 22. Ne3 R8a3 23. Bc1 Rxe2 24. Bxa3 Ra2 25. Nc4 Nd5 26. Qb3 Ra1 27. Nxe5 Rxf1+ 28. Kxf1 Nxe5 29. Bxd5 cxd5 30. Qxd5 Nc6 31. b5 Nd8 32. Bb2+ Kf8 33. Be5 Qc8 34. Qd6+ Ke8 35. Kg2 Ne6 36. c6 bxc6 37. Bf6 Qd7 38. Qxc6 Qxc6+ 39. bxc6 Nc7 40. Kf3 Nd5 41. Be5 Nb4 42. c7 Kd7 43. g4 Nd5 44. Ke4 Ne7 45. Bg3 f6 46. Bh4 Ng8 47. Kd5 Ne7+ 48. Kd4 Nc6+ 49. Ke4 Kxc7 50. Bxf6 Kd6 51. Bg7 h5 52. gxh5 gxh5 53. Kf5 Ne7+ 54. Kg5 Ke6 55. Kxh5 Kf5 56. Bh6 Nd5 57. Kh4 Nf6 58. Kg3 Kg6 59. Be3 Kf5 60. f3 Nd7 61. h4 Nf6 62. Bg5 Nh5+ 63. Kf2 Ke5 64. Ke3 Kf5 65. Kd4 Ng3 66. Ke3 Nh5 67. Be7 Nf4 68. Kf2 Nh5 69. Bd6 Ng7 70. Ke3 Ne6 71. Bg3 Nc5 72. Bf4 Ne6 73. Bg5 Ng7 74. Kd4 Nh5 75. Ke3 Ng7 76. Be7 Ke6 77. Bd8 Ke5 78. f4+ Kf5 79. Kf3 Ne6 80. Bg5 Ng7 81. Be7 Ke6 82. Ba3 Kf5 83. Bd6 Ne6 84. Be5 Nd8 85. h5 Nf7 86. Bg7 Nd6 87. h6 Kg6 88. Ke3 Nc4+ 89. Ke4 Nd2+ 90. Ke5 Nc4+ 91. Ke6 Ne3 92. Bf8 Nc2 93. f5+ Kh7 94. Bg7 Nb4 95. Kd6 Nd3 96. f6 Kg6 97. h7 Kxh7 98. f7 Kxg7 99. Ke7 1-0

[Event "American op"]
[Site "Orange USA"]
[Date "2022.11.26"]
[Round "7.4"]
[White "Vidyarthi, Vyom"]
[Black "Preotu, Razvan"]
[Result "1/2-1/2"]
[ECO "D85"]
[WhiteElo "2402"]
[BlackElo "2493"]
[WhiteFideId "-1"]
[WhiteFideId "-1"]
[PlyCount "73"]
[GameId "2129404714823107"]
[EventDate "2022.11.22"]
[EventType "swiss"]
[EventRounds "9"]
[EventCountry "USA"]
[SourceTitle "10 Days #706"]
[Source "ChessMix"]
[SourceDate "2022.12.01"]
[SourceVersion "1"]
[SourceVersionDate "2022.12.01"]
[SourceQuality "1"]
[TimeControl "5400+30"]

1. d4 Nf6 2. Nf3 g6 3. c4 Bg7 4. Nc3 d5 5. cxd5 Nxd5 6. e4 Nxc3 7. bxc3 c5 8. Bb5+ Nc6 9. O-O O-O 10. Be3 Bg4 11. Bxc6 bxc6 12. Rc1 Rb8 13. Qa4 Bxf3 14. gxf3 Qd7 15. Rb1 Rbc8 16. Kg2 f5 17. dxc5 Kh8 18. Rfd1 Qc7 19. f4 fxe4 20. Qxe4 Rcd8 21. Rxd8 Rxd8 22. Bd4 Qd7 23. Re1 Qg4+ 24. Kh1 Bxd4 25. cxd4 Rd5 26. f5 Qxe4+ 27. Rxe4 gxf5 28. Rxe7 Rxd4 29. Rxa7 Rc4 30. a4 Rxc5 31. Kg2 Rc3 32. f3 f4 33. Rf7 Rc4 34. a5 Ra4 35. Rf5 Ra3 36. h4 Kg7 37. Rc5 1/2-1/2

[Event "American op"]
[Site "Orange USA"]
[Date "2022.11.27"]
[Round "8.3"]
[White "Shlyakhtenko, Robert"]
[Black "Preotu, Razvan"]
[Result "1/2-1/2"]
[ECO "D91"]
[WhiteElo "2432"]
[BlackElo "2493"]
[WhiteFideId "-1"]
[WhiteFideId "-1"]
[PlyCount "75"]
[GameId "2129404714823110"]
[EventDate "2022.11.22"]
[EventType "swiss"]
[EventRounds "9"]
[EventCountry "USA"]
[SourceTitle "10 Days #706"]
[Source "ChessMix"]
[SourceDate "2022.12.01"]
[SourceVersion "1"]
[SourceVersionDate "2022.12.01"]
[SourceQuality "1"]
[TimeControl "5400+30"]

1. d4 Nf6 2. c4 g6 3. Nc3 d5 4. Bg5 Ne4 5. Bh4 Nxc3 6. bxc3 dxc4 7. e3 Be6 8. Nf3 Bg7 9. Be2 Nd7 10. O-O O-O 11. a4 c5 12. Qc2 cxd4 13. Nxd4 Ne5 14. Nxe6 fxe6 15. Rab1 b6 16. Rfd1 Qc7 17. Qe4 Qc6 18. Qxc6 Nxc6 19. Bxc4 Kf7 20. Bb5 Na5 21. Rd7 Bf6 22. Bxf6 Kxf6 23. Rb4 e5 24. f4 Rfd8 25. Rc7 Ke6 26. fxe5 Rd5 27. Be2 Rxe5 28. Bg4+ Kf6 29. Bf3 Rd8 30. Rxa7 Rd6 31. Rf4+ Kg7 32. Rd4 Rde6 33. Bd5 Rd6 34. e4 Nc6 35. Rb7 Nxd4 36. cxd4 Rexd5 37. exd5 Kf7 38. Kf2 1/2-1/2

[Event "Pan-Am Intercoll."]
[Site "Burlingame USA"]
[Date "2018.12.29"]
[Round "4"]
[White "Preotu, Razvan"]
[Black "Durarbayli, Vasif"]
[Result "0-1"]
[ECO "C65"]
[WhiteElo "2524"]
[BlackElo "2620"]
[WhiteFideId "-1"]
[WhiteFideId "-1"]
[PlyCount "90"]
[GameId "2129404762116968"]
[EventDate "2018.12.28"]
[EventType "team"]
[EventRounds "6"]
[EventCountry "USA"]
[SourceTitle "10 Days #565"]
[Source "ChessMix"]
[SourceDate "2019.01.01"]
[SourceVersion "1"]
[SourceVersionDate "2019.01.01"]
[SourceQuality "1"]
[TimeControl "5400+30"]

1. e4 {[%emt 0:00:00]} e5 {[%emt 0:00:00]} 2. Nf3 {[%emt 0:00:00]} Nc6 {[%emt 0:00:00]} 3. Bb5 {[%emt 0:00:00]} Nf6 {[%emt 0:00:00]} 4. d3 {[%emt 0:01:05]} d6 {[%emt 0:01:03]} 5. c4 {[%emt 0:03:28]} Be7 {[%emt 0:02:33]} 6. Nc3 {[%emt 0:00:22]} O-O {[%emt 0:00:11]} 7. h3 {[%emt 0:05:31]} Nd4 {[%emt 0:10:08]} 8. Nxd4 {[%emt 0:01:20]} exd4 {[%emt 0:00:05]} 9. Ne2 {[%emt 0:01:39]} c6 {[%emt 0:00:40]} 10. Ba4 {[%emt 0:00:05]} d5 {[%emt 0:00:05]} 11. cxd5 {[%emt 0:01:04]} Qa5+ {[%emt 0:07:01]} 12. Bd2 {[%emt 0:09:17]} Bb4 {[%emt 0:00:22]} 13. Bb3 {[%emt 0:00:21]} cxd5 {[%emt 0:01:22]} 14. f3 {[%emt 0:01:02]} dxe4 {[%emt 0:02:04]} 15. dxe4 {[%emt 0:07:02]} Be6 {[%emt 0:11:35]} 16. Bxb4 {[%emt 0:04:29]} Qxb4+ {[%emt 0:00:06]} 17. Qd2 {[%emt 0:00:06]} Qb6 {[%emt 0:01:47]} 18. Bxe6 {[%emt 0:02:41]} fxe6 {[%emt 0:02:42]} 19. Qxd4 {[%emt 0:02:33]} Qa6 {[%emt 0:05:52]} 20. Rd1 {[%emt 0:15:35]} Rad8 {[%emt 0:06:07]} 21. Qxd8 {[%emt 0:00:41]} Rxd8 {[%emt 0:00:06]} 22. Rxd8+ {[%emt 0:00:07]} Kf7 {[%emt 0:00:03]} 23. Rd2 {[%emt 0:04:45]} Qxa2 {[%emt 0:01:50]} 24. O-O {[%emt 0:00:18]} Qa5 {[%emt 0:00:41]} 25. Nc3 {[%emt 0:04:00]} Qc5+ {[%emt 0:01:16]} 26. Rff2 {[%emt 0:03:39]} b5 {[%emt 0:01:52]} 27. g4 {[%emt 0:05:58]} b4 {[%emt 0:02:25]} 28. Ne2 {[%emt 0:02:35]} h5 {[%emt 0:01:47]} 29. Ng3 {[%emt 0:00:20]} h4 {[%emt 0:00:45]} 30. Nf1 {[%emt 0:00:11]} Ke7 {[%emt 0:05:34]} 31. Rc2 {[%emt 0:00:25]} Qb6 {[%emt 0:00:50]} 32. Kg2 {[%emt 0:09:17]} Nd7 {[%emt 0:00:28]} 33. Rfd2 {[%emt 0:03:45]} g5 {[%emt 0:03:17]} 34. Rc8 {[%emt 0:09:09]} Ne5 {[%emt 0:00:06]} 35. Rg8 {[%emt 0:00:22]} Kf6 {[%emt 0:00:54]} 36. Re8 {[%emt 0:01:49]} Ng6 {[%emt 0:04:37]} 37. e5+ {[%emt 0:00:13]} Kxe5 {[%emt 0:00:10]} 38. Re2+ {[%emt 0:00:16]} Kf6 {[%emt 0:00:04]} 39. R8xe6+ {[%emt 0:00:31]} Qxe6 {[%emt 0:00:12]} 40. Rxe6+ {[%emt 0:00:06]} Kxe6 {[%emt 0:00:02]} 41. Nd2 {[%emt 0:00:17]} Nf4+ {[%emt 0:00:08]} 42. Kf2 {[%emt 0:02:11]} Nxh3+ {[%emt 0:00:42]} 43. Ke3 {[%emt 0:00:06]} Kd5 {[%emt 0:00:31]} 44. b3 {[%emt 0:00:26]} Nf4 {[%emt 0:00:46]} 45. Ne4 {[%emt 0:01:00]} h3 {[%emt 0:01:05] Kd4+ [%emt 00:00:45] Ke5+} 0-1

[Event "CAN-ch"]
[Site "Guelph CAN"]
[Date "2015.07.11"]
[Round "2.2"]
[White "Plotkin, Victor"]
[Black "Preotu, Razvan"]
[Result "1-0"]
[ECO "C50"]
[WhiteElo "2400"]
[BlackElo "2636"]
[WhiteFideId "-1"]
[WhiteFideId "-1"]
[PlyCount "93"]
[GameId "2160767738660384"]
[EventDate "2015.07.10"]
[EventType "swiss"]
[EventRounds "9"]
[EventCountry "CAN"]
[TimeControl "40/5400+30:1800+30"]

1. e4 e5 2. Nf3 Nc6 3. Bc4 Bc5 4. d3 Nf6 5. Nc3 O-O 6. O-O h6 7. h3 d6 8. Na4 Bb6 9. Nxb6 axb6 10. Be3 Re8 11. Re1 Be6 12. Bb5 Bd7 13. c4 Nb8 14. Bxd7 Nfxd7 15. Qc2 c5 16. g3 Nf8 17. Nh4 Ng6 18. Nxg6 fxg6 19. Kh2 g5 20. Rf1 g4 21. f3 gxf3 22. Rxf3 Rf8 23. Rf5 Nd7 24. g4 Qh4 25. Kg2 g6 26. Qf2 Qe7 27. Rxf8+ Rxf8 28. Qe2 Kg7 29. Rf1 Rf6 30. g5 Rxf1 31. gxh6+ Kh7 32. Qxf1 Nf8 33. h4 Ne6 34. Kg3 Kg8 35. Qf3 Kh7 36. h5 Nd4 37. hxg6+ Kxg6 38. Qg4+ Kh7 39. Qg5 Qf7 40. Bxd4 cxd4 41. Kg4 Kh8 42. b4 Qd7+ 43. Qf5 Qe7 44. a4 Qc7 45. Kg5 Kg8 46. Qe6+ Kh7 47. Kf6 1-0